{"text_format":"3","workbook":"xlsx","n_sheets":2,"sheets":["Start","Planlægning af julebudget"],"not_rendered":{"defined_names":1},"read":"whole","date_system":"1900"}

{"sheet":"Start","index":0,"n_rows":7,"n_cols":2,"rows_kept":7}
[null,"OM DENNE SKABELON"]
[null,"Hold styr på dine udgifter med denne Planlægning af julebudget."]
[null,"Angiv budget og faktisk udgifter på Differencelige elementer i tabeller."]
[null,"Julebudget, Faktisk beløb brugt i alt og Difference beregnes automatisk."]
[null,"Bemærk! "]
[null,"Der er yderligere vejledning at finde i kolonne A i regnearket PLANLÆGNING AF JULEBUDGET. Denne tekst er skjult med vilje. Du kan fjerne tekst ved at markere kolonne A og derefter vælge Slet. For ikke længere at skjule tekst skal du markere kolonne A og derefter ændre skriftfarven."]
[null,"Hvis du vil vide mere om tabeller, skal du trykke på Skift og derefter F10, mens du er i en TABEL vælge indstillingen Tabel og derefter vælge ALTERNATIV TEKST."]

{"sheet":"Planlægning af julebudget","index":1,"n_rows":32,"n_cols":12,"rows_kept":32,"merged":[[1,1,5,4],[2,8,2,9],[3,8,3,9],[4,8,4,9],[6,1,6,4],[6,8,6,11],[15,1,15,4],[15,8,15,11],[25,1,25,4],[25,8,25,11]]}
["Angiv de budget og faktisk udgifter for hver kategori i de respektive tabeller i dette regneark. I cellerne i denne kolonne vises en udførlig vejledning i, hvordan man bruger dette regneark. Pil ned for at starte. "]
["Titlen på dette regneark vises i cellen til højre.","Planlægning af julebudget"]
["Julebudget beregnes automatisk i celle K3.",{"$nulls":7},"JULEBUDGET",null,{"$f":"SUM(Gaver[Budget],Indpakning[Budget],(Rejse[Budget],(Måltider[Budget],(Underholdning[Budget],Diverse[Budget]))))","v":{"v":750,"d":"kr. 750.00"}}]
["Faktisk forbrug beregnes automatisk i celle K4.",{"$nulls":7},"FAKTISK FORBRUG",null,{"$f":"SUM((Gaver[Faktisk],(Indpakning[Faktisk],(Rejse[Faktisk],(Måltider[Faktisk],(Underholdning[Faktisk],(Diverse[Faktisk])))))))","v":{"v":820,"d":"kr. 820.00"}}]
["Difference beregnes automatisk i celle K5. Den næste vejledning er i celle A7.",{"$nulls":7},"DIFFERENCE (over/under budget)",null,{"$f":"SUM(K3-K4)","v":{"v":-70,"d":"kr. -70.00"}}]
[]
["Gaver står i cellen til højre og julemåltider i celle I7.","Gaver",{"$nulls":6},"Julemåltider"]
["Angiv udgifter til gaver i tabellen, der begynder i cellen til højre, og måltider i tabellen, der begynder i celle I8. Den næste vejledning er i celle A16.","Element","Budget","Faktisk","Difference",{"$nulls":3},"Element","Budget","Faktisk","Difference"]
[null,"Familie",{"v":500,"d":"kr. 500.00"},{"v":495,"d":"kr. 495.00"},{"$f":"Gaver[[#This Row],[Budget]]-Gaver[[#This Row],[Faktisk]]","v":{"v":5,"d":"kr. 5.00"}},{"$nulls":3},"Dagligvarer",null,null,{"$f":"Måltider[[#This Row],[Budget]]-Måltider[[#This Row],[Faktisk]]","v":{"v":0,"d":"kr. 0.00"}}]
[null,"Venner",{"v":250,"d":"kr. 250.00"},{"v":325,"d":"kr. 325.00"},{"$f":"Gaver[[#This Row],[Budget]]-Gaver[[#This Row],[Faktisk]]","v":{"v":-75,"d":"-kr. 75.00"}},{"$nulls":3},"Drikkevarer",null,null,{"$f":"Måltider[[#This Row],[Budget]]-Måltider[[#This Row],[Faktisk]]","v":{"v":0,"d":"kr. 0.00"}}]
[null,"Kollegaer",null,null,{"$f":"Gaver[[#This Row],[Budget]]-Gaver[[#This Row],[Faktisk]]","v":{"v":0,"d":"kr. 0.00"}},{"$nulls":3},"Dekorationer",null,null,{"$f":"Måltider[[#This Row],[Budget]]-Måltider[[#This Row],[Faktisk]]","v":{"v":0,"d":"kr. 0.00"}}]
[null,"Lærere, barnepiger, babysittere osv.",null,null,{"$f":"Gaver[[#This Row],[Budget]]-Gaver[[#This Row],[Faktisk]]","v":{"v":0,"d":"kr. 0.00"}},{"$nulls":3},"Andet (tryk på tabulatortasten i sidste kolonne i rækken tilføje række)",null,null,{"$f":"Måltider[[#This Row],[Budget]]-Måltider[[#This Row],[Faktisk]]","v":{"v":0,"d":"kr. 0.00"}}]
[null,"Donationer til velgørenhed",null,null,{"$f":"Gaver[[#This Row],[Budget]]-Gaver[[#This Row],[Faktisk]]","v":{"v":0,"d":"kr. 0.00"}},{"$nulls":3},"Total",{"$f":"SUBTOTAL(109,Måltider[Budget])","v":{"v":0,"d":"kr. 0.00"}},{"$f":"SUBTOTAL(109,Måltider[Faktisk])","v":{"v":0,"d":"kr. 0.00"}},{"$f":"SUBTOTAL(109,Måltider[Difference])","v":{"v":0,"d":"kr. 0.00"}}]
[null,"Andet (tryk på tabulatortasten i sidste kolonne i rækken tilføje række)",null,null,{"$f":"Gaver[[#This Row],[Budget]]-Gaver[[#This Row],[Faktisk]]","v":{"v":0,"d":"kr. 0.00"}}]
[null,"Total",{"$f":"SUBTOTAL(109,Gaver[Budget])","v":{"v":750,"d":"kr. 750.00"}},{"$f":"SUBTOTAL(109,Gaver[Faktisk])","v":{"v":820,"d":"kr. 820.00"}},{"$f":"SUBTOTAL(109,Gaver[Difference])","v":{"v":-70,"d":"-kr. 70.00"}}]
["Indpakning er i cellen til højre og Underholdning i celle I16.","Indpakning",{"$nulls":6},"Underholdning"]
["Angiv udgifter til indpakning i tabellen, der begynder i cellen til højre, og underholdning i tabellen, der begynder i celle I17. Den næste vejledning er i celle A26.","Element","Budget","Faktisk","Difference",{"$nulls":3},"Element","Budget","Faktisk","Difference"]
[null,"Gavepapir",null,null,{"$f":"Indpakning[[#This Row],[Budget]]-Indpakning[[#This Row],[Faktisk]]","v":{"v":0,"d":"kr. 0.00"}},{"$nulls":3},"Hjælp til fest (bartender, catering, rengøring osv.)",null,null,{"$f":"Underholdning[[#This Row],[Budget]]-Underholdning[[#This Row],[Faktisk]]","v":{"v":0,"d":"kr. 0.00"}}]
[null,"Til og fra-kort",null,null,{"$f":"Indpakning[[#This Row],[Budget]]-Indpakning[[#This Row],[Faktisk]]","v":{"v":0,"d":"kr. 0.00"}},{"$nulls":3},"Dekorationer",null,null,{"$f":"Underholdning[[#This Row],[Budget]]-Underholdning[[#This Row],[Faktisk]]","v":{"v":0,"d":"kr. 0.00"}}]
[null,"Tilbehør (gavebånd, tape osv.)",null,null,{"$f":"Indpakning[[#This Row],[Budget]]-Indpakning[[#This Row],[Faktisk]]","v":{"v":0,"d":"kr. 0.00"}},{"$nulls":3},"Mad og drikke",null,null,{"$f":"Underholdning[[#This Row],[Budget]]-Underholdning[[#This Row],[Faktisk]]","v":{"v":0,"d":"kr. 0.00"}}]
[null,"Æsker",null,null,{"$f":"Indpakning[[#This Row],[Budget]]-Indpakning[[#This Row],[Faktisk]]","v":{"v":0,"d":"kr. 0.00"}},{"$nulls":3},"Beklædning",null,null,{"$f":"Underholdning[[#This Row],[Budget]]-Underholdning[[#This Row],[Faktisk]]","v":{"v":0,"d":"kr. 0.00"}}]
[null,"Porto",null,null,{"$f":"Indpakning[[#This Row],[Budget]]-Indpakning[[#This Row],[Faktisk]]","v":{"v":0,"d":"kr. 0.00"}},{"$nulls":3},"Billetter",null,null,{"$f":"Underholdning[[#This Row],[Budget]]-Underholdning[[#This Row],[Faktisk]]","v":{"v":0,"d":"kr. 0.00"}}]
[null,"Andet (tryk på tabulatortasten i sidste kolonne i rækken tilføje række)",null,null,{"$f":"Indpakning[[#This Row],[Budget]]-Indpakning[[#This Row],[Faktisk]]","v":{"v":0,"d":"kr. 0.00"}},{"$nulls":3},"Restaurantbesøg",null,null,{"$f":"Underholdning[[#This Row],[Budget]]-Underholdning[[#This Row],[Faktisk]]","v":{"v":0,"d":"kr. 0.00"}}]
[null,"Total",{"$f":"SUBTOTAL(109,Indpakning[Budget])","v":{"v":0,"d":"kr. 0.00"}},{"$f":"SUBTOTAL(109,Indpakning[Faktisk])","v":{"v":0,"d":"kr. 0.00"}},{"$f":"SUBTOTAL(109,Indpakning[Difference])","v":{"v":0,"d":"kr. 0.00"}},{"$nulls":3},"Andet (tryk på tabulatortasten i sidste kolonne i rækken tilføje række)",null,null,{"$f":"Underholdning[[#This Row],[Budget]]-Underholdning[[#This Row],[Faktisk]]","v":{"v":0,"d":"kr. 0.00"}}]
[{"$nulls":8},"Total",{"$f":"SUBTOTAL(109,Underholdning[Budget])","v":{"v":0,"d":"kr. 0.00"}},{"$f":"SUBTOTAL(109,Underholdning[Faktisk])","v":{"v":0,"d":"kr. 0.00"}},{"$f":"SUBTOTAL(109,Underholdning[Difference])","v":{"v":0,"d":"kr. 0.00"}}]
["Rejse står i cellen til højre og Diverse i celle I26.","Rejse",{"$nulls":6},"Diverse"]
["Angiv udgifter til rejse i tabellen, der begynder i cellen til højre, og diverse i tabellen, der begynder i celle I27.","Element","Budget","Faktisk","Difference",{"$nulls":3},"Element","Budget","Faktisk","Difference"]
[null,"Flybilletter",null,null,{"$f":"Rejse[[#This Row],[Budget]]-Rejse[[#This Row],[Faktisk]]","v":{"v":0,"d":"kr. 0.00"}},{"$nulls":3},"Billeder",null,null,{"$f":"Diverse[[#This Row],[Budget]]-Diverse[[#This Row],[Faktisk]]","v":{"v":0,"d":"kr. 0.00"}}]
[null,"Overnatning",null,null,{"$f":"Rejse[[#This Row],[Budget]]-Rejse[[#This Row],[Faktisk]]","v":{"v":0,"d":"kr. 0.00"}},{"$nulls":3},"Benzin ",null,null,{"$f":"Diverse[[#This Row],[Budget]]-Diverse[[#This Row],[Faktisk]]","v":{"v":0,"d":"kr. 0.00"}}]
[null,"Transport",null,null,{"$f":"Rejse[[#This Row],[Budget]]-Rejse[[#This Row],[Faktisk]]","v":{"v":0,"d":"kr. 0.00"}},{"$nulls":3},"Andet (tryk på tabulatortasten i sidste kolonne i rækken tilføje række)",null,null,{"$f":"Diverse[[#This Row],[Budget]]-Diverse[[#This Row],[Faktisk]]","v":{"v":0,"d":"kr. 0.00"}}]
[null,"Andet (tryk på tabulatortasten i sidste kolonne i rækken tilføje række)",null,null,{"$f":"Rejse[[#This Row],[Budget]]-Rejse[[#This Row],[Faktisk]]","v":{"v":0,"d":"kr. 0.00"}},{"$nulls":3},"Total",{"$f":"SUBTOTAL(109,Diverse[Budget])","v":{"v":0,"d":"kr. 0.00"}},{"$f":"SUBTOTAL(109,Diverse[Faktisk])","v":{"v":0,"d":"kr. 0.00"}},{"$f":"SUBTOTAL(109,Diverse[Difference])","v":{"v":0,"d":"kr. 0.00"}}]
[null,"Total",{"$f":"SUBTOTAL(109,Rejse[Budget])","v":{"v":0,"d":"kr. 0.00"}},{"$f":"SUBTOTAL(109,Rejse[Faktisk])","v":{"v":0,"d":"kr. 0.00"}},{"$f":"SUBTOTAL(109,Rejse[Difference])","v":{"v":0,"d":"kr. 0.00"}}]